Cogmind - Beta 16 --- EXPLORER MODE // 2025.11.13 @ 18:16:40 Player: K.K.Y. Result: Destroyed by Piercing Trap Performance ------------- Evolutions (0) 0 Regions Visited (2) 400 Robots Destroyed (31) 155 Value Destroyed (932) 932 Prototype IDs (0) 0 Alien Tech Used (0) 0 Bonus (0) 0 TOTAL SCORE: 1487 Bonus ------- None Cogmind --------- Core Integrity 0/250 Matter 290/300 Energy 84/100 System Corruption 1% Temperature Cool (0) Movement Rolling (130) Ox2 Location -10/Subcaves Parts ------- > --- POWER (1) -------- (None) > --- PROPULSION (3) --- Subdweller Monowheel > --- UTILITY (2) ------ High-capacity Storage Unit > --- WEAPON (2) ------- Battle Cannon > --- INVENTORY (20) --- Medium Storage Unit Small Matter Pod (50) Sensor Array Signal Interpreter Transport Network Coupler Scrap Shield Battle Rifle Battle Cannon Battle Cannon Battle Cannon Dirty Datajack (20) Peak State ------------ > --- POWER ------------ Subdweller Power Source > --- PROPULSION ------- Light Treads Light Treads Spiked Treads > --- UTILITY ---------- High-capacity Storage Unit > --- WEAPON ----------- Assault Rifle Battle Cannon > --- INVENTORY -------- Light Treads Medium Storage Unit Small Matter Pod Sensor Array Signal Interpreter Transport Network Coupler Beam Cannon [Rating: 10] Favorites ----------- Power Ion Engine Engine Ion Engine Propulsion Light Treads Treads Light Treads Wheel Subdweller Monowheel Utility High-capacity Storage Unit Device Seismic Detector Storage High-capacity Storage Unit Weapon Assault Rifle Energy Gun EM Pulse Gun Energy Cannon Beam Cannon Ballistic Gun Assault Rifle Ballistic Cannon Battle Cannon Launcher Grenade Launcher Special Weapon Mining Laser Build | -11 -10 -10 ------- Run | Yrd Mat Sub Slots Evolved 1 | . 1 . Power . | . . . Propulsion 1 | . 1 . Utility . | . . . Weapon . | . . . Parts Attached 23 | 5 6 12 Power 3 | . 1 2 Engine 3 | . 1 2 Core . | . . . Reactor . | . . . Propulsion 9 | 2 2 5 Treads 8 | 2 2 4 Leg . | . . . Wheel 1 | . . 1 Hover . | . . . Flight . | . . . Utility 3 | 2 1 . Device 1 | 1 . . Storage 2 | 1 1 . Processor . | . . . Hackware . | . . . Protection . | . . . Artifact . | . . . Weapon 8 | 1 2 5 Energy Gun 2 | 1 1 . Energy Cannon 1 | . . 1 Ballistic Gun 1 | . 1 . Ballistic Cannon 2 | . . 2 Launcher 1 | . . 1 Special Weapon 1 | . . 1 Impact Weapon . | . . . Slashing Weapon . | . . . Piercing Weapon . | . . . Special Melee Weapon . | . . . Unidentified Prototypes . | . . . Parts Lost 12 | . 2 10 Power 2 | . . 2 Propulsion 3 | . . 3 Utility 1 | . . 1 Weapon 6 | . 2 4 Highest Loss Streak 3 | . 1 3 To Critical Strikes 1 | . . 1 Average Backups 6 | 2 5 6 Power . | . . . Propulsion . | . . . Utility 4 | 1 3 5 Weapon 1 | 1 1 . Tool/Special . | . . . Unused Backups 9 | 1 . 8 Power . | . . . Propulsion 1 | 1 . . Utility 5 | . . 5 Weapon 2 | . . 2 Tool/Special 1 | . . 1 Average Slot Usage (%) 63 | . 85 53 Engine 4 | . 10 2 Treads 23 | . 36 18 Device 5 | . 12 1 Storage 12 | . 12 12 Energy Gun 1 | . 5 . Energy Cannon 4 | . . 5 Ballistic Gun 4 | . 7 3 Ballistic Cannon 4 | . . 6 Peak Build Rating 10 | 5 8 10 Average Rating 6 | 3 6 5 On Entrance 4 | . 5 8 Avg Prop Armor Cover (%) . | . . . Naked Turns . | . . . Heaviest Build 51 | 13 48 51 Greatest Support 60 | 40 60 60 Greatest Overweight (x) 15 | . . 15 Average Overweight (x) 1 | . . 2 Largest Inventory Capacity 20 | 10 20 20 Average Capacity 19 | 8 17 20 Most Carried 13 | 5 10 13 Average Carried 6 | 2 5 7 Final Capacity 20 | 10 20 20 Final Carried 12 | 3 10 12 Class Distribution -------------------- 100% | Hacker-Mutant Dominant Class ---------------- Hacker-Mutant | -10/Materials Hacker-Mutant | -10/Subcaves Resources | -11 -10 -10 ----------- Run | Yrd Mat Sub Matter Collected 847 | 250 107 490 Remotely . | . . . Salvage Created 982 | . 493 489 Parts 63 | . 34 29 Haulers Intercepted 2 | . 2 . Recyclers Shooed . | . . . Parts Field Recycled . | . . . Retrieved Matter . | . . . Parts Self-Destructed . | . . . Prevented . | . . . Parts Restored . | . . . Kills | -11 -10 -10 ------- Run | Yrd Mat Sub Combat Hostiles Destroyed 26 | . 10 16 Guns 13 | . 7 6 Cannons 9 | . . 9 AOE 4 | . 3 1 Classes Destroyed 6 | . 4 2 Hauler 2 | . 2 . Watcher 3 | . 3 . Swarmer 5 | . 4 1 Grunt 6 | . 6 . Artisan 1 | . . 1 Subdweller 15 | . . 15 Best Kill Streak 4 | . 4 3 Combat Bots Only 4 | . 4 3 Max Kills in Single Turn 2 | . 2 1 Gunslinging . | . . . Exploded 2 | . 2 1 Melee . | . . . Uniques/NPCs Destroyed . | . . . Combat | -11 -10 -10 -------- Run | Yrd Mat Sub Hostile Shots Fired 174 | . 65 109 Missed 53 | . 18 35 Hits 121 | . 47 74 Projectile 121 | . 47 74 AOE 10 | . . 10 Critical Strikes 5 | . 1 4 Damage Taken 1682 | . 400 1282 Core 252 | . 18 234 Absorbed by Shields . | . . . Ignored by Resistances 981 | . 254 727 Core Remaining (%) 100 | 100 . . Volleys Fired 139 | . 38 101 Largest 2 | . 2 2 Hottest 120 | . 80 120 Shots Fired 166 | . 42 124 Gun 97 | . 42 55 Cannon 62 | . . 62 Launcher 5 | . . 5 Special 2 | . . 2 Kinetic 89 | . 16 73 Thermal 46 | . . 46 Explosive 5 | . . 5 Electromagnetic 26 | . 26 . Robot Hit Streak 25 | . 18 25 Robot Miss Streak 1 | . 1 1 Penetration Max . | . . . Secondary Targets . | . . . Shots Hit Robots 132 | . 35 97 Core Hits 58 | . 22 36 Critical Kills . | . . . Critical Parts Destroyed 1 | . 1 . Critical Strikes 2 | . 1 1 Destroy 2 | . 1 1 Melee Attacks . | . . . Impact . | . . . Slashing . | . . . Piercing . | . . . Sneak Attacks . | . . . Combat Hostiles . | . . . Follow-up Attacks . | . . . Damage Inflicted 2389 | . 722 1667 Guns 1030 | . 489 541 Cannons 821 | . . 821 Explosions 490 | . 233 257 Melee . | . . . Ramming . | . . . Kinetic 990 | . 172 818 Thermal 825 | . 233 592 Explosive 257 | . . 257 Electromagnetic 317 | . 317 . Impact . | . . . Slashing . | . . . Piercing . | . . . Highest Corruption 1 | . 1 1 Average Corruption 1 | . 1 1 Corruption Purged . | . . . Corruption Blocked . | . . . Effects 24 | . 6 18 Message Errors 4 | . 2 2 Matter Fused 6 | . 1 5 Heat Flow Errors 2 | . . 2 Energy Discharges 2 | . 1 1 Parts Rejected 1 | . . 1 Data Loss (minor) 6 | . 1 5 Misfires 2 | . . 2 Alerts 1 | . 1 . Overload Shots . | . . . Overflow Damage . | . . . Projectiles . | . . . Explosions . | . . . Melee . | . . . Knockbacks 2 | . . 2 Impact . | . . . Kinetic 2 | . . 2 Secondary . | . . . Self-Inflicted Damage 58 | . 45 13 Shots 3 | . 2 1 Rammed . | . . . Targets Rammed . | . . . Kicked . | . . . Crushed . | . . . Highest Temperature 259 | . 54 259 Average Temperature 37 | . 16 76 Received Heat Transfer 582 | . 297 285 Siege Activations . | . . . Martial Activations . | . . . Shielding Activations . | . . . Robots Disrupted . | . . . Combat Hostiles . | . . . Robots Corrupted . | . . . Combat Hostiles . | . . . Parts Fried . | . . . Impact Corruptions . | . . . Robots Melted . | . . . Combat Hostiles . | . . . Parts Melted 6 | . . 6 Heat Transferred 1647 | . 400 1247 Parts Sabotaged . | . . . Parts Stolen . | . . . Parts Stripped . | . . . Power Chain Reactions 3 | . 3 . Alert | -11 -10 -10 ------- Run | Yrd Mat Sub Maximum Alert Level . | . . . Low Security (%) 100 | 100 100 . Level 1 . | . . . Level 2 . | . . . Level 3 . | . . . Level 4 . | . . . Level 5 . | . . . High Security . | . . . Max Security . | . . . Peak Influence 125 | . 125 . Initial . | . . . Average 13 | . 14 . Influence Increases 335 | . 315 20 Destroy 0b10 Robot/C 220 | . 200 20 Destroy 0b10 Robot/NC 25 | . 25 . Destroy Leader 50 | . 50 . Destroy Structure 10 | . 10 . Lose Combat Pursuer 30 | . 30 . Influence Decreases 335 | . 315 20 Time Decay 335 | . 315 20 Squads Dispatched . | . . . Investigation . | . . . Extermination . | . . . Reinforcement . | . . . Assault . | . . . Garrison . | . . . Intercept . | . . . Searches Triggered . | . . . Construction Impeded . | . . . Haulers Reinforced . | . . . Active Scanning Responses . | . . . Cargo Convoy Interrupts . | . . . Stealth | -11 -10 -10 --------- Run | Yrd Mat Sub Distress Signals . | . . . Communications Jammed . | . . . Distress Signals . | . . . Times Spotted 32 | . 14 18 Peak Tracking Total 4 | . 2 4 Tactical Retreats 2 | . 2 . Traps | -11 -10 -10 ------- Run | Yrd Mat Sub Traps Triggered 4 | . 2 2 Indirectly . | . . . Trap Hack Attempts . | . . . Triggered . | . . . Disarmed . | . . . Reprogrammed . | . . . Reused . | . . . Traps Extracted . | . . . Installed . | . . . Triggered . | . . . Machines | -11 -10 -10 ---------- Run | Yrd Mat Sub Machines Disabled . | . . . Max in Single Turn . | . . . Machines Repaired . | . . . Machines Dismantled . | . . . Machines Sabotaged . | . . . Overloaded Fab Kills . | . . . Hacking | -11 -10 -10 --------- Run | Yrd Mat Sub Machines Accessed 2 | . 1 1 Terminals 1 | . 1 . Fabricators . | . . . Repair Stations . | . . . Recycling Units . | . . . Scanalyzers . | . . . Garrison Access . | . . . Total Hacks 6 | . 2 4 Successful 5 | . 1 4 Failed 1 | . 1 . Catastrophic . | . . . Database Lockouts . | . . . Manual 2 | . 2 . Terminals 2 | . 2 . Fabricators . | . . . Repair Stations . | . . . Recycling Units . | . . . Scanalyzers . | . . . Garrison Access . | . . . Terminal Hacks 5 | . 1 4 Record 4 | . . 4 Zone Layout 1 | . 1 . Fabricator Hacks . | . . . Repair Station Hacks . | . . . Recycling Unit Hacks . | . . . Scanalyzer . | . . . Garrison Access Hacks . | . . . Unauthorized Hacks . | . . . Terminals . | . . . Fabricators . | . . . Repair Stations . | . . . Recycling Units . | . . . Scanalyzers . | . . . Garrison Access . | . . . Data Cores Recovered . | . . . Used . | . . . Hacking Detections 1 | . 1 . Full Trace Events . | . . . Feedback Events . | . . . Feedback Blocked . | . . . Robot Schematics Acquired . | . . . Robots Built . | . . . Authchips . | . . . Time . | . . . Total Robot Build Rating . | . . . Part Schematics Acquired . | . . . Parts Built . | . . . Authchips . | . . . Time . | . . . Total Part Build Rating . | . . . Part Studies Acquired . | . . . Parts Repaired . | . . . Time . | . . . Parts Recycled . | . . . Recycled Matter . | . . . Retrieved Matter . | . . . Retrieved Components . | . . . Parts Scanalyzed . | . . . Part Schematics Acquired . | . . . Parts Damaged . | . . . Bothacking | -11 -10 -10 ------------ Run | Yrd Mat Sub Used RIF Installer . | . . . Robots Hacked . | . . . Non-combat . | . . . Combat . | . . . Robot Hacks Applied . | . . . Relay Couplers Released . | . . . Fabnet Peak Effective % . | . . . Robots Rewired . | . . . Allies Hacked . | . . . Hacks Repelled . | . . . Allies | -11 -10 -10 -------- Run | Yrd Mat Sub Total Allies . | . . . Largest Group . | . . . Highest-Rated Group . | . . . Highest-Rated Ally . | . . . Total Orders . | . . . Ally Attacks . | . . . Total Damage . | . . . Kills . | . . . Allies Corrupted . | . . . Allies Melted . | . . . Intel | -11 -10 -10 ------- Run | Yrd Mat Sub Active Infowar (turns) 1710 | 51 1225 434 Seismic 1710 | 51 1225 434 Robot Analysis Total . | . . . Derelict Logs Recovered 2 | . . 2 Drone Launches . | . . . Drone Recoveries . | . . . Exploration | -11 -10 -10 ------------- Run | Yrd Mat Sub Turns Passed 4070 | 71 1225 2774 Spaces Moved 1620 | 54 679 887 Core 204 | 26 . 178 Treads 1415 | 28 679 708 Legs . | . . . Wheels 1 | . . 1 Hover . | . . . Flight . | . . . Fastest Speed 50 | 50 160 130 Average Speed 225 | 107 160 283 Slowest Speed 800 | 160 160 800 Overloaded Moves . | . . . Propulsion Burnouts . | . . . Robots Hopped . | . . . Potential Cave-ins . | . . . Cave-ins Triggered . | . . . Exploration Rate (%) 50 | 3 97 52 Regions Visited 2 Branch Regions 1 Pre-discovered Areas 1 | . . 1 Known Exits Taken 2 | 1 1 . Unknown Exits Taken . | . . . Scrap Searched 7 | . . 7 Spaces Dug . | . . . Terrain Destroyed 30 | . 10 20 Melee . | . . . Projectile 1 | . . 1 AOE 29 | . 10 19 Terrain Rammed . | . . . Walls Destroyed . | . . . Machines Disabled . | . . . Actions | -11 -10 -10 --------- Run | Yrd Mat Sub Total 1860 | 67 775 1018 Wait 40 | . 40 . Move 1618 | 53 678 887 Hop . | . . . Pick Up 33 | 8 12 13 Fast Attach 1 | 1 . . Attach 15 | 4 4 7 Detach . | . . . Swap 7 | . 2 5 Drop 7 | 1 1 5 Fire 139 | . 38 101 Melee . | . . . Ram . | . . . Kick . | . . . Crush . | . . . Escape Stasis . | . . . Rewire . | . . . Trap . | . . . Miscellaneous . | . . . Route ------- -11/Scrapyard -10/Materials (discovered 6 exits: *Mat x3 / *Min x2 / *Sub) -10/Subcaves (discovered 1 exit: *Mat) History --------- Turn | Location | Event 5 | -11/Scrapyard | Identified exit to Materials 5 | -11/Scrapyard | Discovered exit to Materials (range 15) 72 | -11/Scrapyard | Entered Materials 72 | -10/Materials | Evolved 1 slot: Propulsion x1 304 | -10/Materials | Build established: Hacker-Mutant 392 | -10/Materials | Identified exit to Materials 392 | -10/Materials | Discovered exit to Materials (range 8) 561 | -10/Materials | Discovered exit to Materials (range 16) 683 | -10/Materials | Identified exit to Mines 683 | -10/Materials | Discovered exit to Mines (range 7) 949 | -10/Materials | Discovered exit to Mines (range 8) 1022 | -10/Materials | Discovered exit to Materials (range 15) 1290 | -10/Materials | Identified exit to Subcaves 1290 | -10/Materials | Discovered exit to Subcaves (range 4) 1297 | -10/Materials | Entered Subcaves 1299 | -10/Subcaves | Ambushed by Subdwellers from Twisted Machinery 1304 | -10/Subcaves | A swath of the cavern ceiling suddenly collapsed 1371 | -10/Subcaves | Learned 2 Materials zone layouts 1534 | -10/Subcaves | Ambushed by Subdwellers from Twisted Machinery 1611 | -10/Subcaves | Visited Clippyterm 1615 | -10/Subcaves | Learned Factory garrison access intel 2036 | -10/Subcaves | Identified exit to Materials 2036 | -10/Subcaves | Discovered exit to Materials (range 8) 2101 | -10/Subcaves | Core integrity fell below 50% 2524 | -10/Subcaves | Shifting Twisted Machinery released Mak. Power Source 2649 | -10/Subcaves | Ambushed by Subdweller buried in earth 2651 | -10/Subcaves | Ambushed by Subdweller buried in earth 2652 | -10/Subcaves | Core integrity fell below 20% 2705 | -10/Subcaves | Lost 3 parts (1p2n) 2855 | -10/Subcaves | Shifting Twisted Machinery released Battle Cannon 2968 | -10/Subcaves | Shifting Twisted Machinery released Battle Cannon 3072 | -10/Subcaves | Learned location of Zion (-6) 4071 | -10/Subcaves | Destroyed by Piercing Trap Last Messages --------------- 03955_ Found Battle Cannon. 03955_ Found 67 Matter. 03962_ Subatomizers dissect the Sub. Machine Gun. 03967_ System corrupted: Component data lost. 03977_ Searching scrap... 03977_ Found Sub. Monowheel. 03977_ Found Battle Cannon. 03977_ Found 36 Matter. 03983_ Subatomizers dissect the Sub. Machine Gun. 03992_ Acquired Battle Cannon. 03995_ Subatomizers dissect the Sub. Machine Gun. 04023_ Acquired Battle Cannon. 04032_ Subatomizers dissect the Sub. Machine Gun, destroying it. 04069_ Acquired Sub. Monowheel. 04071_ Triggered Piercing Trap. 04071_ Spikes shoot up from the floor. Map ----- +----------------------------------------------------+ | | | | | | | | | | | | | | | | | | | | | | | | | | | | | | | | | | | | | ?????????????????????????????????????????????????? | | ?????????????????????????????????????????????????? | | ?????????????????????????????????????????????????? | | ?????????????????????????????????????????????????? | | ??????????????????????###########????????????????? | | ????????????????????###< < < ##???????????????? | | ????????????????????# << "##??????????????? | | ???????????????????## % %@ ####" "#??????????????? | | ???????????????????# < <#??## #??????????????? | | ???????????????????#< % ##???# #??????????????? | | ???????????????????##<<<<##??### "#??????????????? | | ????????????????????######???# ^#??????????????? | | ????????????????????########## " ##??????????????? | | ????????????????????#" # * ###??????????????? | | ????????????####????#" & !%##"%"#??????????????? | | ??####??##### ##???##"&"## & ##""#???# ?????????? | | ?## #### ########## "#### ???????? | | ## ## ### " ## ??????? | | # ### ## ??????????? | | # ## ## ##### ##? ?????????? | | # ### ### #??# ????????? | | ####### ## ! #### #??? ???????? | | #?????# ### #??? #????#??????? | | #?????## ?# % ##???? #???????????? | | ##??????# ?# #?????? ##???????????? | | #???????## ## ????#????????????? | | ##???????## ## ## ???????????????? | | #?????????### ## # ##??????????????? | | ##??????????## ## ### ##???????????????? | | # #???????????# ## ##?? #????????????????? | | ##???????????# ## #????#????????????????? | | # ##???????????? ##? ##??#??????????????????? | +----------------------------------------------------+ Best States ------------- Heat Dissipation 25 Energy Generation 15 Energy Capacity 250 Matter Stores 300 Matter Capacity 300 Sight Range 16 Terrain Scan Density 10 Resistance: KI 35 Resistance: TH 35 Resistance: EX 35 Resistance: EM 35 Resistance: I 35 Resistance: S 35 Resistance: P 35 Evasion (%) 50 Recoil Reduction 3 Offensive Hacking 20 Item Schematics ----------------- None Robot Schematics ------------------ None Fabricated ------------ Nothing Repaired ---------- Nothing Studied --------- None Alien Tech Used ----------------- None Achievements -------------- None Challenges ------------ None Game ------ Seed ShrapnelCommMinigun Manual? 0 Play Time 00:19:25 Cumulative 89.1 hours Start 2025.11.13 @ 18:03:58 End 2025.11.13 @ 18:16:40 Sessions 1 Manual Loads 0 Difficulty Explorer Special Mode None Game No. 94 Rogue 0 Adventurer 0 Explorer 94 Win Type - Total 0 Types 0/0/0/0/0/0/0/0/0/0 Lore% 58 Gallery% 56 Achievement% 44 Wizard Run 0 Options --------- Layout 1 ASCII 0 Keyboard 0 Movement Mouse Keybinds 0 Fullscreen 1 Font 24/Smallcaps Map View 50x35 Zoom Use 0% Tactical HUD 1 Map Filters NONE Filters NONE Steam 1 RUN: 7a7b5bba-b6ee-4a65-afc8-21267625dfdc